fUST/lending_fUST_20250819
["ID","MTS","AMOUNT","RATE_DAILY","PERIOD"]
[380190430,1755601840228,-500.0,0.00019178,2]
[380190431,1755601840238,-500.0,0.00019178,2]
[380190432,1755601840248,-500.0,0.00019178,2]
[380190433,1755601840257,-480.0,0.00019178,2]
[380190434,1755601840266,-500.0,0.00019178,2]
[380190435,1755601840275,-500.0,0.00019178,2]
[380190436,1755601840286,-500.0,0.00019178,2]
[380190437,1755601840296,-577.24780417,0.00019178,2]
[380190438,1755601840306,-480.0,0.00019178,2]
[380190439,1755601840315,-480.0,0.00019178,2]
[380190440,1755601840325,-480.0,0.00019178,2]
[380190441,1755601840334,-480.0,0.00019178,2]
[380190442,1755601840345,-480.0,0.00019178,2]
[380190443,1755601840356,-480.0,0.00019178,2]
[380190444,1755601840366,-480.0,0.00019178,2]
[380190445,1755601840375,-480.0,0.00019178,2]
[380190446,1755601840385,-371.21102599,0.00019178,2]
[380190447,1755601840394,-480.0,0.00019178,2]
[380190448,1755601840403,-480.0,0.00019178,2]
[380190449,1755601840413,-480.0,0.00019178,2]
[380190450,1755601840422,-483.11108994,0.00019178,2]
[380190451,1755601840434,-480.0,0.00019178,2]
[380190452,1755601840445,-480.0,0.00019178,2]
[380190453,1755601840454,-480.0,0.00019178,2]
[380190454,1755601840463,-421.86429638,0.00019178,2]
[380190455,1755601840473,-318.74984126,0.00019178,2]
[380190456,1755601840483,-480.0,0.00019178,2]
[380190457,1755601840492,-480.0,0.00019178,2]
[380190458,1755601840502,-420.0,0.00019178,2]
[380190459,1755601840513,-800.55,0.00019178,2]
[380190460,1755601840522,-362.24021907,0.00019178,2]
[380190461,1755601840532,-480.0,0.00019178,2]
[380190462,1755601840541,-480.0,0.00019178,2]
[380190463,1755601840551,-480.0,0.00019178,2]
[380190464,1755601840559,-480.0,0.00019178,2]
[380190465,1755601840569,-441.91726735,0.00019178,2]
[380190466,1755601840578,-480.0,0.00019178,2]
[380190467,1755601840588,-480.0,0.00019178,2]
[380190468,1755601840598,-461.69431838,0.00019178,2]
[380190469,1755601840607,-480.0,0.00019178,2]
[380190470,1755601840616,-480.0,0.00019178,2]
[380190471,1755601840625,-480.0,0.00019178,2]
[380190472,1755601840635,-480.0,0.00019178,2]
[380190473,1755601840644,-480.0,0.00019178,2]
[380190474,1755601840654,-480.0,0.00019178,2]
[380190475,1755601840664,-480.0,0.00019178,2]
[380190476,1755601840673,-480.0,0.00019178,2]
[380190477,1755601840683,-480.860249,0.00019178,2]
[380190478,1755601840693,-480.0,0.00019178,2]
[380190479,1755601840702,-480.0,0.00019178,2]
[380190480,1755601840712,-480.0,0.00019178,2]
[380190481,1755601840722,-480.0,0.00019178,2]
[380190482,1755601840732,-480.0,0.00019178,2]
[380190483,1755601840742,-481.31,0.00019178,2]
[380190484,1755601840752,-283.96907723,0.00019178,2]
[380190485,1755601840762,-480.0,0.00019178,2]
[380190486,1755601840772,-480.0,0.00019178,2]
[380190487,1755601840781,-480.0,0.00019178,2]
[380190488,1755601840791,-480.0,0.00019178,2]
[380190489,1755601840801,-480.0,0.00019178,2]
[380190490,1755601840810,-185.20558183,0.00019178,2]
[380190491,1755601840819,-480.0,0.00019178,2]
[380190492,1755601840829,-484.13448107,0.00019178,2]
[380190493,1755601840838,-480.0,0.00019178,2]
[380190494,1755601840847,-480.0,0.00019178,2]
[380190495,1755601840857,-676.57,0.00019178,2]
[380190496,1755601840867,-788.43,0.00019178,2]
[380190497,1755601840876,-460.0,0.00019178,2]
[380190498,1755601840885,-480.0,0.00019178,2]
[380190499,1755601840895,-480.0,0.00019178,2]
[380190500,1755601840905,-480.0,0.00019178,2]
[380190501,1755601840913,-464.05715263,0.00019178,2]
[380190502,1755601840923,-480.0,0.00019178,2]
[380190503,1755601840932,-480.0,0.00019178,2]
[380190504,1755601840941,-480.0,0.00019178,2]
[380190505,1755601840951,-480.0,0.00019178,2]
[380190506,1755601840960,-480.0,0.00019178,2]
[380190507,1755601840969,-480.0,0.00019178,2]
[380190508,1755601840978,-480.0,0.00019178,2]
[380190509,1755601840988,-480.0,0.00019178,2]
[380190510,1755601840997,-480.0,0.00019178,2]
[380190511,1755601841007,-620.8894089,0.00019178,2]
[380190512,1755601841016,-1906.19,0.00019178,2]
[380190513,1755601841025,-480.0,0.00019178,2]
[380190514,1755601841034,-621.94,0.00019178,2]
[380190515,1755601841044,-480.0,0.00019178,2]
[380190516,1755601841053,-480.0,0.00019178,2]
[380190517,1755601841063,-473.34283794,0.00019178,2]
[380190518,1755601841072,-500.0,0.00019178,2]
[380190519,1755601841081,-500.0,0.00019178,2]
[380190520,1755601841090,-500.0,0.00019178,2]
[380190521,1755601841099,-480.0,0.00019178,2]
[380190522,1755601841108,-581.66,0.00019178,2]
[380190523,1755601841117,-480.0,0.00019178,2]
[380190524,1755601841127,-480.0,0.00019178,2]
[380190525,1755601841137,-398.32930879,0.00019178,2]
[380190526,1755601841146,-480.0,0.00019178,2]
[380190527,1755601841155,-480.0,0.00019178,2]
[380190528,1755601841164,-480.0,0.00019178,2]
[380190529,1755601841173,-480.0,0.00019178,2]
[380190530,1755601841182,-480.0,0.00019178,2]
[380190531,1755601841191,-480.0,0.00019178,2]
[380190532,1755601841200,-480.0,0.00019178,2]
[380190533,1755601841209,-1263.31,0.00019178,2]
[380190534,1755601841218,-460.96301584,0.00019178,2]
[380190535,1755601841227,-480.0,0.00019178,2]
[380190536,1755601841236,-480.0,0.00019178,2]
[380190537,1755601841246,-480.0,0.00019178,2]
[380190538,1755601841257,-480.0,0.00019178,2]
[380190539,1755601841267,-480.0,0.00019178,2]
[380190540,1755601841276,-480.0,0.00019178,2]
[380190541,1755601841286,-565.63,0.00019178,2]
[380190542,1755601841295,-461.22754587,0.00019178,2]
[380190543,1755601841304,-482.9688312,0.00019178,2]
[380190544,1755601841313,-460.0,0.00019178,2]
[380190545,1755601841322,-480.0,0.00019178,2]
[380190546,1755601841332,-480.0,0.00019178,2]
[380190547,1755601841341,-320.00000001,0.00019178,2]
[380190548,1755601841351,-480.0,0.00019178,2]
[380190549,1755601841360,-480.0,0.00019178,2]
[380190550,1755601841369,-4032.52,0.00019178,2]
[380190551,1755601841379,-480.0,0.00019178,2]
[380190552,1755601841388,-1267.61,0.00019178,2]
[380190553,1755601841397,-480.0,0.00019178,2]
[380190554,1755601841407,-480.0,0.00019178,2]
[380190555,1755601841416,-262.08639041,0.00019178,2]
[380190556,1755601841426,-480.0,0.00019178,2]
[380190557,1755601841438,-1106.18,0.00019178,2]
[380190558,1755601841447,-480.0,0.00019178,2]
[380190559,1755601841458,-282.97116056,0.00019178,2]
[380190560,1755601841467,-480.0,0.00019178,2]
[380190561,1755601841478,-480.0,0.00019178,2]
[380190562,1755601841487,-480.0,0.00019178,2]
[380190563,1755601841497,-480.0,0.00019178,2]
[380190564,1755601841513,-480.0,0.00019178,2]
[380190565,1755601841522,-480.0,0.00019178,2]
[380190566,1755601841532,-480.0,0.00019178,2]
[380190567,1755601841542,-1771.12,0.00019178,2]
[380190568,1755601841551,-480.0,0.00019178,2]
[380190569,1755601841562,-480.0,0.00019178,2]
[380190570,1755601841571,-480.0,0.00019178,2]
[380190571,1755601841581,-480.0,0.00019178,2]
[380190572,1755601841590,-480.0,0.00019178,2]
[380190573,1755601841600,-440.0,0.00019178,2]
[380190574,1755601841610,-494.2,0.00019178,2]
[380190575,1755601841702,-610.58,0.00019178,2]
[380190576,1755601841711,-480.0,0.00019178,2]
[380190577,1755601841720,-480.0,0.00019178,2]
[380190578,1755601841729,-480.0,0.00019178,2]
[380190579,1755601841738,-480.0,0.00019178,2]
[380190580,1755601841747,-480.0,0.00019178,2]
[380190581,1755601841757,-820.63,0.00019178,2]
[380190582,1755601841766,-287.30030898,0.00019178,2]
[380190583,1755601841775,-480.0,0.00019178,2]
[380190584,1755601841784,-480.0,0.00019178,2]
[380190585,1755601841794,-480.0,0.00019178,2]
[380190586,1755601841802,-480.0,0.00019178,2]
[380190587,1755601841812,-480.0,0.00019178,2]
[380190588,1755601841820,-386.80529356,0.00019178,2]
[380190589,1755601841830,-480.0,0.00019178,2]
[380190590,1755601841839,-480.0,0.00019178,2]
[380190591,1755601841848,-1265.95,0.00019178,2]
[380190592,1755601841857,-480.0,0.00019178,2]
[380190593,1755601841866,-480.0,0.00019178,2]
[380190594,1755601841875,-480.0,0.00019178,2]
[380190595,1755601841885,-2060.19,0.00019178,2]
[380190596,1755601841894,-420.84557211,0.00019178,2]
[380190597,1755601841903,-480.0,0.00019178,2]
[380190598,1755601841912,-480.0,0.00019178,2]
[380190599,1755601841921,-480.0,0.00019178,2]
[380190600,1755601841931,-480.0,0.00019178,2]
[380190601,1755601841940,-480.0,0.00019178,2]
[380190602,1755601841949,-480.0,0.00019178,2]
[380190603,1755601841959,-480.0,0.00019178,2]
[380190604,1755601841969,-482.23428221,0.00019178,2]
[380190605,1755601841978,-480.0,0.00019178,2]
[380190606,1755601841987,-480.0,0.00019178,2]
[380190607,1755601841996,-480.577149,0.00019178,2]
[380190608,1755601842006,-480.0,0.00019178,2]
[380190609,1755601842016,-711.53,0.00019178,2]
[380190610,1755601842025,-863.88,0.00019178,2]
[380190611,1755601842034,-480.0,0.00019178,2]
[380190612,1755601842043,-482.44467574,0.00019178,2]
[380190613,1755601842052,-615.93,0.00019178,2]
[380190614,1755601842062,-500.0,0.00019178,2]
[380190615,1755601842071,-480.0,0.00019178,2]
[380190616,1755601842081,-500.0,0.00019178,2]
[380190617,1755601842090,-500.0,0.00019178,2]
[380190618,1755601842101,-500.0,0.00019178,2]
[380190619,1755601842110,-480.0,0.00019178,2]
[380190620,1755601842120,-480.0,0.00019178,2]
[380190621,1755601842129,-500.0,0.00019178,2]
[380190622,1755601842138,-500.0,0.00019178,2]
[380190623,1755601842147,-500.0,0.00019178,2]
[380190624,1755601842156,-500.0,0.00019178,2]
[380190625,1755601842165,-500.0,0.00019178,2]
[380190626,1755601842174,-500.0,0.00019178,2]
[380190627,1755601842184,-500.0,0.00019178,2]
[380190628,1755601842194,-480.0,0.00019178,2]
[380190629,1755601842203,-378.38121608,0.00019178,2]
[380190633,1755601842456,-274.39878392,0.00019178,2]
[380190634,1755601842466,-1839.78,0.00019178,2]
[380190635,1755601842476,-480.0,0.00019178,2]
[380190636,1755601842485,-480.0,0.00019178,2]
[380190637,1755601842495,-460.0,0.00019178,2]
[380190638,1755601842507,-480.0,0.00019178,2]
[380190639,1755601842517,-480.0,0.00019178,2]
[380190640,1755601842526,-400.0,0.00019178,2]
[380190641,1755601842536,-480.0,0.00019178,2]
[380190642,1755601842545,-480.0,0.00019178,2]
[380190643,1755601842555,-480.0,0.00019178,2]
[380190644,1755601842564,-609.06,0.00019178,2]
[380190645,1755601842574,-480.0,0.00019178,2]
[380190646,1755601842583,-386.4488354,0.00019178,2]
[380190647,1755601842592,-1521.61,0.00019178,2]
[380190648,1755601842602,-480.0,0.00019178,2]
[380190649,1755601842611,-480.0,0.00019178,2]
[380190650,1755601842621,-480.0,0.00019178,2]
[380190651,1755601842630,-480.0,0.00019178,2]
[380190652,1755601842640,-844.13,0.00019178,2]
[380190653,1755601842649,-333.30545321,0.00019178,2]
[380190654,1755601842659,-480.0,0.00019178,2]
[380190655,1755601842668,-560.0,0.00019178,2]
[380190656,1755601842677,-480.0,0.00019178,2]
[380190657,1755601842687,-324.23253279,0.00019178,2]
[380190658,1755601842696,-480.0,0.00019178,2]
[380190659,1755601842707,-480.0,0.00019178,2]
[380190660,1755601842717,-480.0,0.00019178,2]
[380190661,1755601842726,-480.0,0.00019178,2]
[380190662,1755601842736,-480.0,0.00019178,2]
[380190663,1755601842746,-6819.92,0.00019178,2]
[380190664,1755601842759,-480.0,0.00019178,2]
[380190665,1755601842769,-488.0913918,0.00019178,2]
[380190666,1755601842778,-480.0,0.00019178,2]
[380190667,1755601842788,-480.0,0.00019178,2]
[380190668,1755601842798,-596.48,0.00019178,2]
[380190669,1755601842808,-480.0,0.00019178,2]
[380190670,1755601842818,-445.05204738,0.00019178,2]
[380190671,1755601842827,-480.0,0.00019178,2]
[380190672,1755601842838,-480.0,0.00019178,2]
[380190673,1755601842848,-717.4,0.00019178,2]
[380190674,1755601842857,-480.0,0.00019178,2]
[380190675,1755601842868,-480.0,0.00019178,2]
[380190676,1755601842878,-480.0,0.00019178,2]
[380190677,1755601842888,-480.0,0.00019178,2]
[380190678,1755601842898,-480.0,0.00019178,2]
[380190679,1755601842908,-480.0,0.00019178,2]
[380190680,1755601842918,-257.11280651,0.00019178,2]
[380190681,1755601842928,-480.0,0.00019178,2]
[380190682,1755601842938,-480.0,0.00019178,2]
[380190683,1755601842947,-3139.11,0.00019178,2]
[380190684,1755601842957,-480.0,0.00019178,2]
[380190685,1755601842966,-480.0,0.00019178,2]
[380190686,1755601842975,-480.0,0.00019178,2]
[380190687,1755601842985,-480.0,0.00019178,2]
[380190688,1755601842994,-480.0,0.00019178,2]
[380190689,1755601843003,-464.87366172,0.00019178,2]
[380190691,1755601843012,-480.0,0.00019178,2]
[380190692,1755601843023,-521.25,0.00019178,2]
[380190693,1755601843032,-480.0,0.00019178,2]
[380190694,1755601843041,-480.0,0.00019178,2]
[380190695,1755601843051,-480.0,0.00019178,2]
[380190696,1755601843060,-480.0,0.00019178,2]
[380190697,1755601843161,-480.0,0.00019178,2]
[380190698,1755601843171,-480.0,0.00019178,2]
[380190699,1755601843180,-480.0,0.00019178,2]
[380190700,1755601843190,-480.0,0.00019178,2]
[380190701,1755601843199,-480.0,0.00019178,2]
[380190702,1755601843208,-528.11330284,0.00019178,2]
[380190703,1755601843218,-480.0,0.00019178,2]
[380190704,1755601843227,-480.0,0.00019178,2]
[380190706,1755601843237,-480.0,0.00019178,2]
[380190708,1755601843247,-480.0,0.00019178,2]
[380190710,1755601843257,-480.0,0.00019178,2]
[380190712,1755601843266,-164.76932104,0.00019178,2]
[380190714,1755601843275,-864.95,0.00019178,2]
[380190716,1755601843284,-360.0,0.00019178,2]
[380190717,1755601843294,-390.26746381,0.00019178,2]
[380190719,1755601843303,-408.87812576,0.00019178,2]
[380190721,1755601843312,-480.0,0.00019178,2]
[380190723,1755601843322,-271.26435825,0.00019178,2]
[380190725,1755601843331,-480.0,0.00019178,2]
[380190727,1755601843341,-480.0,0.00019178,2]
[380190729,1755601843351,-480.0,0.00019178,2]
[380190731,1755601843360,-480.0,0.00019178,2]
[380190733,1755601843370,-662.48,0.00019178,2]
[380190735,1755601843379,-745.21,0.00019178,2]
[380190737,1755601843388,-2108.4,0.00019178,2]
[380190739,1755601843398,-480.0,0.00019178,2]
[380190741,1755601843407,-889.99,0.00019178,2]
[380190743,1755601843416,-480.0,0.00019178,2]
[380190745,1755601843426,-480.0,0.00019178,2]
[380190747,1755601843442,-480.0,0.00019178,2]
[380190749,1755601843452,-480.0,0.00019178,2]
[380190751,1755601843460,-803.27,0.00019178,2]
[380190753,1755601843470,-509.07,0.00019178,2]
[380190755,1755601843480,-6091.5,0.00019178,2]
[380190757,1755601843489,-1959.65,0.00019178,2]
[380190759,1755601843498,-480.0,0.00019178,2]
[380190761,1755601843510,-480.0,0.00019178,2]
[380190763,1755601843521,-231.11003241,0.00019178,2]
[380190765,1755601843531,-480.0,0.00019178,2]
[380190767,1755601843540,-488.04,0.00019178,2]
[380190769,1755601843550,-480.0,0.00019178,2]
[380190771,1755601843559,-480.0,0.00019178,2]
[380190773,1755601843568,-481.12848898,0.00019178,2]
[380190775,1755601843578,-480.0,0.00019178,2]
[380190777,1755601843588,-480.0,0.00019178,2]
[380190778,1755601843598,-480.0,0.00019178,2]
[380190779,1755601843607,-762.09,0.00019178,2]
[380190780,1755601843617,-480.0,0.00019178,2]
[380190782,1755601843626,-480.0,0.00019178,2]
[380190784,1755601843635,-480.0,0.00019178,2]
[380190785,1755601843644,-480.0,0.00019178,2]
[380190786,1755601843653,-480.0,0.00019178,2]
[380190787,1755601843663,-278.71802117,0.00019178,2]
[380190788,1755601843672,-480.0,0.00019178,2]
[380190789,1755601843682,-480.0,0.00019178,2]
[380190790,1755601843691,-2797.84,0.00019178,2]
[380190791,1755601843700,-480.0,0.00019178,2]
[380190792,1755601843710,-480.0,0.00019178,2]
[380190793,1755601843719,-480.0,0.00019178,2]
[380190794,1755601843728,-480.0,0.00019178,2]
[380190795,1755601843738,-460.0,0.00019178,2]
[380190796,1755601843747,-574.76957231,0.00019178,2]
[380190797,1755601843760,-480.0,0.00019178,2]
[380190798,1755601843769,-480.0,0.00019178,2]
[380190799,1755601843778,-384.57688049,0.00019178,2]
[380190800,1755601843787,-481.03100824,0.00019178,2]
[380190801,1755601843797,-480.0,0.00019178,2]
[380190802,1755601843806,-480.0,0.00019178,2]
[380190803,1755601843815,-480.0,0.00019178,2]
[380190804,1755601843825,-480.0,0.00019178,2]
[380190805,1755601843835,-480.0,0.00019178,2]
[380190806,1755601843844,-480.0,0.00019178,2]
[380190807,1755601843854,-480.0,0.00019178,2]
[380190808,1755601843863,-480.0,0.00019178,2]
[380190809,1755601843872,-480.0,0.00019178,2]
[380190810,1755601843882,-500.0,0.00019178,2]
[380190811,1755601843892,-500.0,0.00019178,2]
[380190812,1755601843901,-500.0,0.00019178,2]
[380190813,1755601843910,-666.0,0.00019178,2]
[380190814,1755601843920,-5000.0,0.00019178,2]
[380190815,1755601843932,-5000.0,0.00019178,2]
[380190816,1755601843943,-220.53,0.0001919,2]
[380190817,1755601843954,-150.0,0.000192,2]
[380190818,1755601843964,-3000.0,0.000192,2]
[380190819,1755601843974,-1767.82184427,0.00019213,2]
[380190820,1755601843985,-150.0,0.0001925,2]
[380190821,1755601843996,-992.37,0.0001935,2]
[380190822,1755601844010,-1767.82184427,0.00019351,2]
[380190823,1755601844021,-1000.0,0.00019352,2]
[380190824,1755601844032,-1000.0,0.00019424,2]
[380190825,1755601844041,-1000.0,0.00019424,2]
[380190826,1755601844051,-1000.0,0.00019424,2]
[380190827,1755601844060,-1000.0,0.00019424,2]
[380190828,1755601844071,-1000.0,0.00019424,2]
[380190829,1755601844080,-1000.0,0.00019424,2]
[380190830,1755601844090,-1000.0,0.00019424,2]
[380190831,1755601844099,-659.76722186,0.00019424,2]
[380190832,1755601844109,-200.0,0.0001944,2]
[380190833,1755601844121,-2963.45874538,0.00019448,2]
[380190834,1755601844131,-992.37,0.00019451,2]
[380190835,1755601844141,-992.37,0.00019451,2]
[380190836,1755601844152,-992.37,0.00019451,2]
[380190837,1755601844161,-992.37,0.00019451,2]
[380190838,1755601844171,-992.37,0.00019451,2]
[380190839,1755601844180,-992.37,0.00019451,2]
[380190840,1755601844190,-992.37,0.00019451,2]
[380190841,1755601844199,-992.37,0.00019451,2]
[380190842,1755601844209,-992.37,0.00019451,2]
[380190843,1755601844218,-992.46172793,0.00019451,2]
[380190844,1755601844228,-426.6049207,0.00019452,2]
[380190845,1755601844238,-480.0,0.00019452,2]
[380190846,1755601844248,-481.52929514,0.00019452,2]
[380190847,1755601844262,-480.0,0.00019452,2]
[380190848,1755601844272,-480.0,0.00019452,2]
[380190849,1755601844282,-480.0,0.00019452,2]
[380190850,1755601844292,-588.31664871,0.00019452,2]
[380190851,1755601844301,-480.0,0.00019452,2]
[380190852,1755601844311,-403.36759567,0.00019452,2]
[380190853,1755601844321,-480.0,0.00019452,2]
[380190854,1755601844330,-480.0,0.00019452,2]
[380190855,1755601844339,-480.0,0.00019452,2]
[380190856,1755601844349,-489.00476417,0.00019452,2]
[380190857,1755601844358,-480.0,0.00019452,2]
[380190858,1755601844368,-480.0,0.00019452,2]
[380190859,1755601844378,-480.0,0.00019452,2]
[380190860,1755601844387,-480.0,0.00019452,2]
[380190861,1755601844396,-484.19684791,0.00019452,2]
[380190862,1755601844407,-480.0,0.00019452,2]
[380190863,1755601844416,-552.31007044,0.00019452,2]
[380190864,1755601844427,-480.0,0.00019452,2]
[380190865,1755601844441,-800.0,0.00019452,2]
[380190866,1755601844451,-480.0,0.00019452,2]
[380190867,1755601844460,-480.0,0.00019452,2]
[380190868,1755601844470,-480.0,0.00019452,2]
[380190869,1755601844480,-480.0,0.00019452,2]
[380190870,1755601844490,-460.0,0.00019452,2]
[380190871,1755601844499,-480.0,0.00019452,2]
[380190872,1755601844512,-480.0,0.00019452,2]
[380190873,1755601844523,-480.0,0.00019452,2]
[380190874,1755601844533,-480.0,0.00019452,2]
[380190875,1755601844542,-480.0,0.00019452,2]
[380190876,1755601844552,-480.0,0.00019452,2]
[380190877,1755601844561,-480.0,0.00019452,2]
[380190878,1755601844571,-444.02567874,0.00019452,2]
[380190879,1755601844581,-289.46361166,0.00019452,2]
[380190880,1755601844590,-480.0,0.00019452,2]
[380190881,1755601844599,-480.0,0.00019452,2]
[380190882,1755601844608,-480.0,0.00019452,2]
[380190883,1755601844618,-480.0,0.00019452,2]
[380190884,1755601844627,-480.0,0.00019452,2]
[380190885,1755601844636,-480.0,0.00019452,2]
[380190886,1755601844725,-480.0,0.00019452,2]
[380190887,1755601844736,-480.0,0.00019452,2]
[380190888,1755601844746,-382.67044105,0.00019452,2]
[380190889,1755601844757,-480.0,0.00019452,2]
[380190890,1755601844767,-262.04557642,0.00019452,2]
[380190891,1755601844777,-480.0,0.00019452,2]
[380190892,1755601844786,-480.0,0.00019452,2]
[380190893,1755601844796,-440.0,0.00019452,2]
[380190894,1755601844805,-480.0,0.00019452,2]
[380190895,1755601844815,-480.0,0.00019452,2]
[380190896,1755601844825,-480.0,0.00019452,2]
[380190897,1755601844834,-480.0,0.00019452,2]
[380190898,1755601844843,-612.85735452,0.00019452,2]
[380190899,1755601844852,-480.0,0.00019452,2]
[380190900,1755601844862,-323.10931404,0.00019452,2]
[380190901,1755601844871,-480.0,0.00019452,2]
[380190902,1755601844881,-480.0,0.00019452,2]
[380190903,1755601844890,-385.77498191,0.00019452,2]
[380190904,1755601844898,-480.0,0.00019452,2]
[380190905,1755601844908,-480.0,0.00019452,2]
[380190906,1755601844917,-480.0,0.00019452,2]
[380190907,1755601844927,-480.0,0.00019452,2]
[380190908,1755601844936,-480.0,0.00019452,2]
[380190909,1755601844945,-480.0,0.00019452,2]
[380190910,1755601844954,-480.0,0.00019452,2]
[380190911,1755601844963,-480.0,0.00019452,2]
[380190912,1755601844973,-480.0,0.00019452,2]
[380190913,1755601844982,-480.0,0.00019452,2]
[380190914,1755601844991,-646.64,0.00019452,2]
[380190915,1755601845003,-480.0,0.00019452,2]
[380190916,1755601845013,-480.0,0.00019452,2]
[380190917,1755601845022,-480.0,0.00019452,2]
[380190918,1755601845031,-480.0,0.00019452,2]
[380190919,1755601845040,-480.0,0.00019452,2]
[380190920,1755601845049,-480.0,0.00019452,2]
[380190921,1755601845058,-480.0,0.00019452,2]
[380190922,1755601845067,-480.0,0.00019452,2]
[380190923,1755601845077,-485.3577514,0.00019452,2]
[380190924,1755601845087,-177.12257805,0.00019452,2]
[380190925,1755601845096,-480.0,0.00019452,2]
[380190926,1755601845106,-480.0,0.00019452,2]
[380190927,1755601845115,-480.0,0.00019452,2]
[380190928,1755601845125,-480.0,0.00019452,2]
[380190929,1755601845134,-480.0,0.00019452,2]
[380190930,1755601845144,-480.0,0.00019452,2]
[380190931,1755601845153,-480.0,0.00019452,2]
[380190932,1755601845162,-480.0,0.00019452,2]
[380190933,1755601845171,-480.0,0.00019452,2]
[380190934,1755601845181,-482.12760775,0.00019452,2]
[380190935,1755601845190,-480.0,0.00019452,2]
[380190936,1755601845200,-480.0,0.00019452,2]
[380190937,1755601845210,-291.75788744,0.00019452,2]
[380190938,1755601845227,-188.24211256,0.00019452,2]
[380190939,1755601845237,-104.62323694,0.00019452,2]
[380190940,1755601845248,-749.10676306,0.00019452,2]
[380190941,1755601845260,-480.0,0.00019452,2]
[380190942,1755601845269,-480.0,0.00019452,2]
[380190943,1755601845279,-159.8754512,0.00019452,2]
[380190945,1755601845782,-268.38624361,0.00019178,2]
[380190946,1755601845836,-211.61375639,0.00019178,2]
[380190947,1755601845846,-150.84325174,0.00019178,2]
[380190951,1755601925109,700.0,0.00018356,2]
[380190952,1755601984890,423.6,0.00028767,120]
[380190953,1755601986769,81.13184121,0.00018182,2]
[380190954,1755601986793,918.86815879,0.00018182,2]
[380190955,1755602051280,422.974409,0.00013699,2]
[380190956,1755602067627,8658.15743221,0.00018175,2]
[380190957,1755602067657,1341.84256779,0.00018175,2]
[380190958,1755602135621,154.30051807,0.00019,2]
[380190961,1755602155131,169.77560574,0.00018974,2]
[380190963,1755602169439,-464.10620707,0.00019074,2]
[380190964,1755602178903,445.85275302,0.00019044,2]
[380190966,1755602179286,-221.61056324,0.00019074,2]
[380190967,1755602181623,-188.86057369,0.00019074,2]
[380190968,1755602184347,-108.4278204,0.00019074,2]
[380190969,1755602184367,-71.97465227,0.00019074,2]
[380190970,1755602188668,-78.79918697,0.00019074,2]
[380190971,1755602188692,-72.20081303,0.00019077,2]
[380190972,1755602191057,-420.78062588,0.00019077,2]
[380190974,1755602193980,-281.51247247,0.00019077,2]
[380190975,1755602195004,831.25176281,0.00019044,2]
[380190976,1755602195917,-314.0673106,0.00019077,2]
[380190977,1755602198320,-189.11701146,0.00019077,2]
[380190979,1755602211506,189.11701146,0.00019044,2]
[380190980,1755602225822,263.10478681,0.000189,2]
[380190983,1755602409770,527.348984,0.00018138,2]